fUSD/lending_fUSD_20250521
["ID","MTS","AMOUNT","RATE_DAILY","PERIOD"]
[361812374,1747823491532,-3015.53,0.00033698,5]
[361812375,1747823491542,-420.0,0.00033698,5]
[361812376,1747823491552,-460.17,0.00033698,5]
[361812377,1747823491563,-420.0,0.00033698,5]
[361812378,1747823491573,-420.0,0.00033698,5]
[361812379,1747823491583,-642.11,0.00033698,5]
[361812380,1747823491593,-420.0,0.00033698,5]
[361812381,1747823491604,-427.11213196,0.00033698,5]
[361812382,1747823491614,-1185.77,0.00033698,5]
[361812383,1747823491624,-973.19,0.00033698,5]
[361812384,1747823491634,-497.57,0.00033698,5]
[361812385,1747823491644,-1098.15,0.00033698,5]
[361812386,1747823491654,-420.0,0.00033698,5]
[361812387,1747823491664,-420.0,0.00033698,5]
[361812388,1747823491674,-420.0,0.00033698,5]
[361812389,1747823491684,-685.16,0.00033698,5]
[361812390,1747823491695,-420.0,0.00033698,5]
[361812391,1747823491705,-420.0,0.00033698,5]
[361812392,1747823491716,-198.78977194,0.00033698,5]
[361812393,1747823491725,-1485.21,0.00033698,5]
[361812394,1747823491735,-448.34,0.00033698,5]
[361812395,1747823491746,-818.23,0.00033698,5]
[361812396,1747823491756,-443.81,0.00033698,5]
[361812397,1747823491765,-1526.88,0.00033698,5]
[361812398,1747823491775,-420.0,0.00033698,5]
[361812399,1747823491785,-420.0,0.00033698,5]
[361812400,1747823491795,-470.16,0.00033698,5]
[361812401,1747823491804,-443.58,0.00033698,5]
[361812402,1747823491814,-669.64,0.00033698,5]
[361812403,1747823491824,-420.0,0.00033698,5]
[361812404,1747823491835,-420.0,0.00033698,5]
[361812405,1747823491845,-420.0,0.00033698,5]
[361812406,1747823491855,-937.45,0.00033698,5]
[361812407,1747823491865,-2266.87,0.00033698,5]
[361812408,1747823491875,-420.0,0.00033698,5]
[361812409,1747823491886,-442.68,0.00033698,5]
[361812410,1747823491897,-420.0,0.00033698,5]
[361812411,1747823491907,-420.0,0.00033698,5]
[361812412,1747823491918,-420.0,0.00033698,5]
[361812413,1747823491928,-420.0,0.00033698,5]
[361812414,1747823491939,-655.53,0.00033698,5]
[361812415,1747823491949,-597.09,0.00033698,5]
[361812416,1747823491959,-420.0,0.00033698,5]
[361812417,1747823491969,-420.0,0.00033698,5]
[361812418,1747823491981,-636.42,0.00033698,5]
[361812419,1747823491992,-420.0,0.00033698,5]
[361812420,1747823492003,-420.0,0.00033698,5]
[361812421,1747823492016,-420.0,0.00033698,5]
[361812422,1747823492027,-838.78,0.00033698,5]
[361812423,1747823492038,-420.0,0.00033698,5]
[361812424,1747823492054,-493.93,0.00033698,5]
[361812425,1747823492065,-420.0,0.00033698,5]
[361812426,1747823492077,-420.0,0.00033698,5]
[361812427,1747823492089,-560.23,0.00033698,5]
[361812428,1747823492099,-420.0,0.00033698,5]
[361812429,1747823492111,-1078.18,0.00033698,5]
[361812430,1747823492122,-420.0,0.00033698,5]
[361812431,1747823492134,-420.0,0.00033698,5]
[361812432,1747823492145,-2322.3,0.00033698,5]
[361812433,1747823492156,-420.0,0.00033698,5]
[361812434,1747823492168,-420.0,0.00033698,5]
[361812435,1747823492179,-1065.69,0.00033698,5]
[361812436,1747823492190,-420.0,0.00033698,5]
[361812437,1747823492203,-1253.93,0.00033698,5]
[361812438,1747823492214,-1274.75,0.00033698,5]
[361812439,1747823492226,-463.91,0.00033698,5]
[361812440,1747823492239,-721.97,0.00033698,5]
[361812441,1747823492250,-420.0,0.00033698,5]
[361812442,1747823492262,-821.62,0.00033698,5]
[361812443,1747823492273,-422.38,0.00033698,5]
[361812444,1747823492284,-420.0,0.00033698,5]
[361812445,1747823492298,-1544.61,0.00033698,5]
[361812446,1747823492311,-550.85,0.00033698,5]
[361812447,1747823492323,-420.0,0.00033698,5]
[361812448,1747823492334,-420.0,0.00033698,5]
[361812449,1747823492346,-420.0,0.00033698,5]
[361812450,1747823492359,-420.0,0.00033698,5]
[361812451,1747823492375,-499.46,0.00033698,5]
[361812452,1747823492387,-420.0,0.00033698,5]
[361812453,1747823492533,-678.04,0.00033698,5]
[361812454,1747823492546,-616.6,0.00033698,5]
[361812455,1747823492556,-1170.85,0.00033698,5]
[361812456,1747823492565,-546.75,0.00033698,5]
[361812457,1747823492574,-420.0,0.00033698,5]
[361812458,1747823492583,-420.0,0.00033698,5]
[361812459,1747823492592,-420.0,0.00033698,5]
[361812460,1747823492602,-1581.01,0.00033698,5]
[361812461,1747823492613,-420.0,0.00033698,5]
[361812462,1747823492622,-2020.82,0.00033698,5]
[361812463,1747823492632,-543.37857155,0.00033698,5]
[361812464,1747823492642,-420.0,0.00033698,5]
[361812465,1747823492652,-1587.36,0.00033698,5]
[361812466,1747823492662,-440.31,0.00033698,5]
[361812467,1747823492671,-528.73,0.00033698,5]
[361812468,1747823492681,-420.0,0.00033698,5]
[361812469,1747823492691,-530.24,0.00033698,5]
[361812470,1747823492700,-835.65,0.00033698,5]
[361812471,1747823492710,-420.0,0.00033698,5]
[361812472,1747823492719,-632.49,0.00033698,5]
[361812473,1747823492729,-420.0,0.00033698,5]
[361812474,1747823492739,-712.53,0.00033698,5]
[361812475,1747823492749,-420.0,0.00033698,5]
[361812476,1747823492758,-420.0,0.00033698,5]
[361812477,1747823492767,-905.81,0.00033698,5]
[361812478,1747823492777,-420.0,0.00033698,5]
[361812479,1747823492786,-1500.35,0.00033698,5]
[361812480,1747823492799,-420.0,0.00033698,5]
[361812481,1747823492808,-913.23,0.00033698,5]
[361812482,1747823492818,-891.23,0.00033698,5]
[361812483,1747823492827,-420.0,0.00033698,5]
[361812484,1747823492836,-420.0,0.00033698,5]
[361812485,1747823492845,-191.07320244,0.00033698,5]
[361812486,1747823492855,-420.0,0.00033698,5]
[361812487,1747823492865,-420.0,0.00033698,5]
[361812488,1747823492874,-420.0,0.00033698,5]
[361812489,1747823492884,-420.0,0.00033698,5]
[361812490,1747823492893,-793.59,0.00033698,5]
[361812491,1747823492903,-511.66885969,0.00033698,5]
[361812492,1747823492912,-420.0,0.00033698,5]
[361812493,1747823492922,-532.78,0.00033698,5]
[361812494,1747823492931,-420.0,0.00033698,5]
[361812495,1747823492941,-420.0,0.00033698,5]
[361812496,1747823492950,-420.0,0.00033698,5]
[361812497,1747823492960,-420.0,0.00033698,5]
[361812498,1747823492969,-716.67,0.00033698,5]
[361812499,1747823492979,-431.22,0.00033698,5]
[361812500,1747823492987,-3321.89,0.00033698,5]
[361812501,1747823492997,-655.87,0.00033698,5]
[361812502,1747823493006,-420.0,0.00033698,5]
[361812503,1747823493015,-420.0,0.00033698,5]
[361812504,1747823493024,-464.92,0.00033698,5]
[361812505,1747823493034,-420.0,0.00033698,5]
[361812506,1747823493043,-752.46,0.00033698,5]
[361812507,1747823493053,-420.0,0.00033698,5]
[361812508,1747823493063,-186.54041802,0.00033698,5]
[361812509,1747823493073,-1164.32,0.00033698,5]
[361812510,1747823493084,-420.0,0.00033698,5]
[361812511,1747823493094,-447.46,0.00033698,5]
[361812512,1747823493104,-420.0,0.00033698,5]
[361812513,1747823493114,-420.0,0.00033698,5]
[361812514,1747823493124,-970.46,0.00033698,5]
[361812515,1747823493134,-1182.51,0.00033698,5]
[361812516,1747823493143,-2566.8,0.00033698,3]
[361812517,1747823493153,-420.0,0.00033698,5]
[361812518,1747823493163,-986.1,0.00033698,5]
[361812519,1747823493172,-3544.76,0.00033698,5]
[361812520,1747823493182,-528.46,0.00033698,5]
[361812521,1747823493191,-420.0,0.00033698,5]
[361812522,1747823493201,-498.41,0.00033698,5]
[361812523,1747823493210,-420.0,0.00033698,5]
[361812524,1747823493219,-420.0,0.00033698,5]
[361812525,1747823493230,-194.16922212,0.00033698,5]
[361812526,1747823493239,-1116.24,0.00033698,5]
[361812527,1747823493249,-607.2,0.00033698,5]
[361812528,1747823493258,-511.54,0.00033698,5]
[361812529,1747823493268,-420.0,0.00033698,5]
[361812530,1747823493278,-420.0,0.00033698,5]
[361812531,1747823493288,-1446.26,0.00033698,5]
[361812532,1747823493298,-420.0,0.00033698,5]
[361812533,1747823493308,-635.53,0.00033698,5]
[361812534,1747823493318,-420.0,0.00033698,5]
[361812535,1747823493328,-420.0,0.00033698,5]
[361812536,1747823493339,-420.0,0.00033698,5]
[361812537,1747823493348,-602.05,0.00033698,5]
[361812538,1747823493362,-420.0,0.00033698,5]
[361812539,1747823493371,-420.0,0.00033698,5]
[361812540,1747823493381,-3171.93,0.00033698,5]
[361812541,1747823493390,-420.0,0.00033698,5]
[361812542,1747823493400,-420.0,0.00033698,5]
[361812543,1747823493411,-672.06,0.00033698,5]
[361812544,1747823493420,-501.87,0.00033698,5]
[361812545,1747823493430,-1136.92,0.00033698,5]
[361812546,1747823493439,-420.0,0.00033698,5]
[361812547,1747823493449,-960.17,0.00033698,5]
[361812548,1747823493459,-420.0,0.00033698,5]
[361812549,1747823493469,-420.0,0.00033698,5]
[361812550,1747823493478,-1498.01,0.00033698,5]
[361812551,1747823493488,-420.0,0.00033698,5]
[361812552,1747823493498,-420.0,0.00033698,5]
[361812553,1747823493507,-420.0,0.00033698,5]
[361812554,1747823493517,-489.93,0.00033698,5]
[361812555,1747823493527,-420.0,0.00033698,5]
[361812556,1747823493537,-420.0,0.00033698,5]
[361812557,1747823493547,-420.0,0.00033698,5]
[361812558,1747823493557,-1634.56,0.00033698,5]
[361812559,1747823493566,-420.0,0.00033698,5]
[361812560,1747823493575,-1181.55,0.00033698,5]
[361812561,1747823493585,-420.0,0.00033698,5]
[361812562,1747823493596,-420.0,0.00033698,5]
[361812563,1747823493606,-526.88701947,0.00033698,5]
[361812564,1747823493616,-420.0,0.00033698,5]
[361812565,1747823493626,-533.84262014,0.00033698,5]
[361812566,1747823493636,-420.0,0.00033698,5]
[361812567,1747823493646,-731.06,0.00033698,5]
[361812568,1747823493656,-665.75,0.00033698,5]
[361812569,1747823493665,-420.0,0.00033698,5]
[361812570,1747823493675,-420.0,0.00033698,5]
[361812571,1747823493685,-420.0,0.00033698,5]
[361812572,1747823493695,-1010.87,0.00033698,5]
[361812573,1747823493707,-725.49,0.00033698,5]
[361812574,1747823493718,-1218.91,0.00033698,5]
[361812575,1747823493728,-1168.31,0.00033698,5]
[361812576,1747823493738,-1264.38,0.00033698,5]
[361812577,1747823493748,-420.0,0.00033698,5]
[361812578,1747823493758,-420.0,0.00033698,2]
[361812579,1747823493768,-420.0,0.00033698,5]
[361812580,1747823493778,-584.07,0.00033698,5]
[361812581,1747823493788,-3033.08,0.00033698,5]
[361812582,1747823493799,-420.0,0.00033698,5]
[361812583,1747823493809,-420.0,0.00033698,5]
[361812584,1747823493819,-740.34,0.00033698,5]
[361812585,1747823493829,-420.0,0.00033698,5]
[361812586,1747823493839,-420.0,0.00033698,5]
[361812587,1747823493849,-420.0,0.00033698,5]
[361812588,1747823493859,-1236.73,0.00033698,5]
[361812589,1747823493869,-240.0,0.00033698,5]
[361812590,1747823493879,-420.0,0.00033698,5]
[361812591,1747823493890,-718.57,0.00033698,5]
[361812592,1747823493900,-420.0,0.00033698,2]
[361812593,1747823493909,-420.0,0.00033698,5]
[361812594,1747823493919,-2646.97,0.00033698,5]
[361812595,1747823493929,-420.0,0.00033698,5]
[361812596,1747823493938,-420.0,0.00033698,5]
[361812597,1747823493948,-420.0,0.00033698,5]
[361812598,1747823493958,-420.0,0.00033698,5]
[361812599,1747823493968,-3655.51,0.00033698,5]
[361812600,1747823493978,-360.00025134,0.00033698,5]
[361812601,1747823493988,-420.0,0.00033698,5]
[361812602,1747823493998,-1194.67,0.00033698,5]
[361812603,1747823494007,-637.39,0.00033698,5]
[361812604,1747823494018,-2368.39,0.00033698,5]
[361812605,1747823494027,-932.97,0.00033698,5]
[361812606,1747823494037,-788.04,0.00033698,5]
[361812607,1747823494047,-475.79,0.00033698,5]
[361812608,1747823494056,-469.81,0.00033698,5]
[361812609,1747823494065,-420.0,0.00033698,5]
[361812610,1747823494075,-1192.06,0.00033698,5]
[361812611,1747823494085,-1158.88,0.00033698,5]
[361812612,1747823494095,-2693.72,0.00033698,5]
[361812613,1747823494104,-2741.78,0.00033698,5]
[361812614,1747823494113,-1351.52,0.00033698,5]
[361812615,1747823494122,-420.0,0.00033698,5]
[361812616,1747823494132,-1167.31,0.00033698,5]
[361812617,1747823494142,-420.0,0.00033698,5]
[361812618,1747823494151,-420.0,0.00033698,5]
[361812619,1747823494161,-506.87,0.00033698,5]
[361812620,1747823494171,-402.95613348,0.00033698,5]
[361812621,1747823494179,-1450.92,0.00033698,5]
[361812622,1747823494189,-408.22295175,0.00033698,5]
[361812623,1747823494198,-664.46,0.00033698,5]
[361812624,1747823494207,-420.0,0.00033698,5]
[361812625,1747823494216,-2096.4,0.00033698,5]
[361812626,1747823494226,-1675.88,0.00033698,5]
[361812627,1747823494235,-783.68,0.00033698,5]
[361812628,1747823494245,-421.11,0.00033698,5]
[361812629,1747823494254,-420.0,0.00033698,5]
[361812630,1747823494264,-1330.16,0.00033698,5]
[361812631,1747823494273,-655.43,0.00033698,5]
[361812632,1747823494283,-470.23,0.00033698,5]
[361812633,1747823494292,-628.75,0.00033698,5]
[361812634,1747823494304,-789.43,0.00033698,5]
[361812635,1747823494314,-420.0,0.00033698,5]
[361812636,1747823494324,-2066.32,0.00033698,5]
[361812637,1747823494334,-543.38,0.00033698,5]
[361812638,1747823494343,-1884.88,0.00033698,5]
[361812639,1747823494353,-420.0,0.00033698,5]
[361812640,1747823494365,-443.39,0.00033698,5]
[361812641,1747823494375,-420.0,0.00033698,5]
[361812642,1747823494384,-420.0,0.00033698,5]
[361812643,1747823494394,-814.52,0.00033698,5]
[361812644,1747823494403,-420.0,0.00033698,5]
[361812645,1747823494412,-468.75,0.00033698,5]
[361812646,1747823494421,-420.0,0.00033698,5]
[361812647,1747823494433,-2280.59,0.00033698,5]
[361812648,1747823494443,-420.0,0.00033698,5]
[361812649,1747823494453,-420.0,0.00033698,5]
[361812650,1747823494463,-420.0,0.00033698,5]
[361812651,1747823494473,-420.0,0.00033698,5]
[361812652,1747823494482,-1660.08,0.00033698,5]
[361812653,1747823494492,-420.0,0.00033698,5]
[361812654,1747823494502,-891.37,0.00033698,5]
[361812655,1747823494512,-1229.28,0.00033698,5]
[361812656,1747823494522,-420.0,0.00033698,5]
[361812657,1747823494531,-2531.44,0.00033698,5]
[361812658,1747823494540,-420.0,0.00033698,5]
[361812659,1747823494552,-562.73,0.00033698,5]
[361812660,1747823494561,-420.0,0.00033698,5]
[361812661,1747823494572,-420.0,0.00033698,5]
[361812662,1747823494581,-1520.14,0.00033698,5]
[361812663,1747823494591,-420.0,0.00033698,5]
[361812664,1747823494600,-639.64,0.00033698,5]
[361812665,1747823494610,-420.0,0.00033698,5]
[361812666,1747823494619,-2002.78,0.00033698,5]
[361812667,1747823494628,-420.0,0.00033698,5]
[361812668,1747823494638,-420.0,0.00033698,5]
[361812669,1747823494647,-504.03,0.00033698,5]
[361812670,1747823494657,-420.0,0.00033698,5]
[361812671,1747823494666,-420.0,0.00033698,5]
[361812672,1747823494676,-756.35,0.00033698,5]
[361812673,1747823494686,-1155.6,0.00033698,5]
[361812674,1747823494696,-420.0,0.00033698,5]
[361812675,1747823494706,-2487.3,0.00033698,5]
[361812676,1747823494716,-420.0,0.00033698,5]
[361812677,1747823494725,-829.63,0.00033698,5]
[361812678,1747823494735,-440.4,0.00033698,5]
[361812679,1747823494745,-420.0,0.00033698,5]
[361812680,1747823494754,-420.0,0.00033698,5]
[361812681,1747823494764,-1069.06,0.00033698,5]
[361812682,1747823494773,-512.22,0.00033698,5]
[361812683,1747823494783,-1131.24,0.00033698,5]
[361812684,1747823494792,-3548.27,0.00033698,5]
[361812685,1747823494801,-420.0,0.00033698,5]
[361812686,1747823494811,-531.37,0.00033698,5]
[361812687,1747823494821,-420.0,0.00033698,5]
[361812688,1747823494830,-438.38,0.00033698,5]
[361812689,1747823494840,-420.0,0.00033698,5]
[361812690,1747823494849,-504.31346218,0.00033698,5]
[361812691,1747823494859,-1167.92,0.00033698,5]
[361812692,1747823494868,-836.66,0.00033698,5]
[361812693,1747823494878,-1758.59,0.00033698,5]
[361812694,1747823494888,-2244.73,0.00033698,5]
[361812695,1747823494897,-500.0,0.00033698,5]
[361812696,1747823494908,-706.99,0.00033698,5]
[361812697,1747823494917,-1671.68,0.00033698,5]
[361812698,1747823494928,-1303.3,0.00033698,5]
[361812699,1747823494937,-630.7,0.00033698,5]
[361812700,1747823494947,-420.0,0.00033698,5]
[361812701,1747823494957,-420.0,0.00033698,5]
[361812702,1747823494966,-1546.03,0.00033698,5]
[361812703,1747823494976,-1449.1,0.00033698,5]
[361812704,1747823494985,-1084.11,0.00033698,5]
[361812705,1747823494995,-796.16,0.00033698,5]
[361812706,1747823495006,-829.47,0.00033698,5]
[361812707,1747823495016,-420.0,0.00033698,5]
[361812708,1747823495026,-420.0,0.00033698,5]
[361812709,1747823495035,-560.22,0.00033698,5]
[361812710,1747823495044,-2061.87,0.00033698,5]
[361812711,1747823495054,-677.92,0.00033698,5]
[361812712,1747823495064,-1832.34,0.00033698,5]
[361812713,1747823495073,-1759.24,0.00033698,5]
[361812714,1747823495083,-420.0,0.00033698,5]
[361812715,1747823495092,-420.0,0.00033698,5]
[361812716,1747823495103,-2008.9,0.00033698,5]
[361812717,1747823495113,-420.0,0.00033698,5]
[361812718,1747823495122,-603.25,0.00033698,5]
[361812719,1747823495133,-420.0,0.00033698,5]
[361812720,1747823495142,-3335.62,0.00033698,5]
[361812721,1747823495152,-794.93,0.00033698,5]
[361812722,1747823495162,-420.0,0.00033698,5]
[361812723,1747823495172,-462.11,0.00033698,5]
[361812724,1747823495180,-1384.78,0.00033698,5]
[361812725,1747823495192,-3088.45,0.00033698,5]
[361812726,1747823495202,-3415.98,0.00033698,5]
[361812727,1747823495211,-420.0,0.00033698,5]
[361812728,1747823495221,-420.0,0.00033698,5]
[361812729,1747823495230,-420.0,0.00033698,5]
[361812730,1747823495239,-420.0,0.00033698,5]
[361812731,1747823495248,-475.97,0.00033698,5]
[361812732,1747823495258,-420.0,0.00033698,5]
[361812733,1747823495267,-1441.04,0.00033698,5]
[361812734,1747823495276,-420.0,0.00033698,5]
[361812735,1747823495285,-1360.17,0.00033698,5]
[361812736,1747823495295,-799.95,0.00033698,5]
[361812737,1747823495304,-2905.57,0.00033698,5]
[361812738,1747823495313,-420.0,0.00033698,5]
[361812739,1747823495324,-420.0,0.00033698,5]
[361812740,1747823495333,-1022.16,0.00033698,5]
[361812741,1747823495343,-420.0,0.00033698,5]
[361812742,1747823495352,-155.89101045,0.00033698,5]
[361812743,1747823495362,-420.0,0.00033698,5]
[361812744,1747823495375,-2154.53,0.00033698,5]
[361812745,1747823495384,-420.0,0.00033698,5]
[361812746,1747823495393,-1412.77,0.00033698,5]
[361812747,1747823495403,-1804.92,0.00033698,5]
[361812748,1747823495412,-931.82,0.00033698,5]
[361812749,1747823495422,-301.64101446,0.00033698,5]
[361812750,1747823495431,-3820.81,0.00033698,5]
[361812751,1747823495441,-420.0,0.00033698,5]
[361812752,1747823495453,-420.0,0.00033698,5]
[361812753,1747823495463,-420.0,0.00033698,5]
[361812754,1747823495473,-446.52,0.00033698,5]
[361812755,1747823495482,-3379.22,0.00033698,5]
[361812756,1747823495492,-552.29,0.00033698,5]
[361812757,1747823495503,-420.0,0.00033698,5]
[361812758,1747823495514,-2204.62,0.00033698,5]
[361812759,1747823495523,-1365.61,0.00033698,5]
[361812760,1747823495532,-739.98,0.00033698,5]
[361812761,1747823495541,-1686.16,0.00033698,5]
[361812762,1747823495553,-420.0,0.00033698,5]
[361812763,1747823495563,-638.15,0.00033698,5]
[361812764,1747823495572,-2851.0,0.00033698,5]
[361812765,1747823495582,-420.0,0.00033698,5]
[361812766,1747823495591,-420.0,0.00033698,5]
[361812767,1747823495600,-420.0,0.00033698,5]
[361812768,1747823495610,-669.03,0.00033698,5]
[361812769,1747823495620,-641.93,0.00033698,5]
[361812770,1747823495629,-1513.514558,0.00033698,5]
[361812771,1747823495638,-1056.24,0.00033698,5]
[361812772,1747823495647,-605.2,0.00033698,5]
[361812773,1747823495656,-420.0,0.00033698,5]
[361812774,1747823495666,-420.0,0.00033698,5]
[361812775,1747823495675,-420.0,0.00033698,5]
[361812776,1747823495685,-420.0,0.00033698,5]
[361812777,1747823495695,-3414.72,0.00033698,5]
[361812778,1747823495704,-420.0,0.00033698,5]
[361812779,1747823495714,-456.44,0.00033698,5]
[361812780,1747823495724,-2738.58,0.00033698,5]
[361812781,1747823495733,-626.72,0.00033698,5]
[361812782,1747823495743,-1961.22,0.00033698,5]
[361812783,1747823495753,-4019.16,0.00033698,5]
[361812784,1747823495763,-420.0,0.00033698,5]
[361812785,1747823495772,-420.0,0.00033698,5]
[361812786,1747823495782,-420.0,0.00033698,5]
[361812787,1747823495792,-420.0,0.00033698,5]
[361812788,1747823495802,-437.02,0.00033698,5]
[361812789,1747823495812,-501.19,0.00033698,5]
[361812790,1747823495821,-420.0,0.00033698,5]
[361812791,1747823495831,-420.0,0.00033698,5]
[361812792,1747823495842,-3829.73,0.00033698,5]
[361812793,1747823495851,-1171.35,0.00033698,5]
[361812794,1747823495861,-1195.86,0.00033698,5]
[361812795,1747823495870,-1602.68,0.00033698,5]
[361812796,1747823495880,-1595.56,0.00033698,5]
[361812797,1747823495889,-420.0,0.00033698,5]
[361812798,1747823495898,-420.0,0.00033698,5]
[361812799,1747823495908,-1403.63,0.00033698,5]
[361812800,1747823495918,-420.0,0.00033698,5]
[361812801,1747823495928,-1620.22,0.00033698,5]
[361812802,1747823495939,-2127.07,0.00033698,5]
[361812803,1747823495948,-975.42,0.00033698,5]
[361812804,1747823495958,-420.0,0.00033698,5]
[361812805,1747823495967,-1651.18,0.00033698,5]
[361812806,1747823495978,-663.27,0.00033698,5]
[361812807,1747823495987,-4718.07,0.00033698,5]
[361812808,1747823495996,-560.95,0.00033698,5]
[361812809,1747823496008,-701.41,0.00033698,5]
[361812810,1747823496018,-950.44,0.00033698,5]
[361812811,1747823496027,-420.0,0.00033698,5]
[361812812,1747823496038,-708.42,0.00033698,5]
[361812813,1747823496048,-3358.3,0.00033698,5]
[361812814,1747823496057,-420.0,0.00033698,5]
[361812815,1747823496066,-3071.77,0.00033698,5]
[361812816,1747823496076,-1131.94,0.00033698,5]
[361812817,1747823496085,-1890.69,0.00033698,5]
[361812818,1747823496095,-420.0,0.00033698,5]
[361812819,1747823496105,-2588.8,0.00033698,5]
[361812820,1747823496114,-1081.97,0.00033698,5]
[361812821,1747823496123,-447.09,0.00033698,5]
[361812822,1747823496133,-1061.79,0.00033698,5]
[361812823,1747823496142,-3165.26,0.00033698,5]
[361812824,1747823496151,-1578.73,0.00033698,5]
[361812825,1747823496161,-420.0,0.00033698,5]
[361812826,1747823496171,-420.0,0.00033698,5]
[361812827,1747823496181,-801.31,0.00033698,5]
[361812828,1747823496192,-437.54,0.00033698,5]
[361812829,1747823496202,-420.0,0.00033698,5]
[361812830,1747823496212,-1117.87,0.00033698,5]
[361812831,1747823496222,-590.41,0.00033698,5]
[361812832,1747823496232,-646.24,0.00033698,5]
[361812833,1747823496241,-469.33,0.00033698,5]
[361812834,1747823496250,-420.0,0.00033698,5]
[361812835,1747823496259,-1582.05,0.00033698,5]
[361812836,1747823496269,-420.0,0.00033698,5]
[361812837,1747823496278,-420.0,0.00033698,5]
[361812838,1747823496288,-944.65,0.00033698,5]
[361812839,1747823496303,-420.0,0.00033698,5]
[361812840,1747823496314,-1388.27,0.00033698,5]
[361812841,1747823496323,-817.62,0.00033698,5]
[361812842,1747823496332,-420.0,0.00033698,5]
[361812843,1747823496342,-394.3388626,0.00033698,5]
[361812844,1747823496351,-420.0,0.00033698,5]
[361812845,1747823496362,-1313.42,0.00033698,5]
[361812846,1747823496376,-2712.821305,0.00033698,5]
[361812847,1747823496386,-2499.18,0.00033698,5]
[361812848,1747823496395,-205.77075287,0.00033698,5]
[361812849,1747823496406,-420.0,0.00033698,5]
[361812850,1747823496415,-591.99,0.00033698,5]
[361812851,1747823496425,-420.0,0.00033698,5]
[361812852,1747823496434,-420.0,0.00033698,5]
[361812853,1747823496445,-2676.06,0.00033698,5]
[361812854,1747823496456,-420.0,0.00033698,5]
[361812855,1747823496465,-420.0,0.00033698,5]
[361812856,1747823496474,-1630.17,0.00033698,5]
[361812857,1747823496483,-2046.62,0.00033698,5]
[361812858,1747823496493,-707.44,0.00033698,5]
[361812859,1747823496502,-420.0,0.00033698,5]
[361812860,1747823496512,-420.0,0.00033698,5]
[361812861,1747823496522,-420.0,0.00033698,5]
[361812862,1747823496532,-524.92,0.00033698,5]
[361812863,1747823496541,-844.05,0.00033698,5]
[361812864,1747823496551,-603.94,0.00033698,5]
[361812865,1747823496561,-2122.24,0.00033698,5]
[361812866,1747823496570,-5021.23,0.00033698,5]
[361812867,1747823496580,-1529.49,0.00033698,5]
[361812868,1747823496589,-1386.81,0.00033698,5]
[361812869,1747823496599,-1250.7,0.00033698,5]
[361812870,1747823496608,-420.0,0.00033698,5]
[361812871,1747823496618,-1682.48,0.00033698,5]
[361812872,1747823496627,-730.49,0.00033698,5]
[361812873,1747823496637,-420.0,0.00033698,5]